bitfinex/quotes_ETHUSD_20240730
["timestamp","ask_amount","ask_price","bid_price","bid_amount"]
[1722308812961,2.40775,3322.6,3322.5,35.0]
[1722308813148,2.76327407,3322.6,3322.5,35.0]
[1722308814189,5.17102407,3322.6,3322.5,35.0]
[1722308815277,2.76327407,3322.6,3322.5,35.0]
[1722308820301,7.06321927,3322.6,3322.5,35.0]
[1722308820479,10.06321927,3322.6,3322.5,35.0]
[1722308820683,8.72102407,3322.6,3322.5,35.0]
[1722308822259,11.12877407,3322.6,3322.5,35.0]
[1722308823661,8.72102407,3322.6,3322.5,35.0]
[1722308824222,10.61319874,3322.6,3322.5,35.0]
[1722308824400,7.41467374,3322.6,3322.5,35.0]
[1722308824560,0.11474907,3322.6,3322.5,35.0]
[1722308825823,0.11474907,3322.6,3322.0,4.83307]
[1722308826163,5.52249907,3322.6,3322.0,4.83307]
[1722308826367,5.52249907,3322.6,3322.5,35.0]
[1722308827478,3.11474907,3322.6,3322.5,35.0]
[1722308827732,0.11474907,3322.6,3322.5,39.67560639]
[1722308827918,0.11474907,3322.6,3322.5,37.4616]
[1722308828069,2.40753,3322.9,3322.5,37.4616]
[1722308828271,2.40753,3322.9,3322.5,2.4616]
[1722308828573,0.11446664,3322.8,3322.5,2.4616]
[1722308829172,0.11446664,3322.8,3322.7,35.0]
[1722308830720,3.0,3323.0,3322.7,35.0]
[1722308830930,0.11460571,3322.8,3322.7,35.0]
[1722308831105,4.8917588,3323.0,3322.7,35.0]
[1722308831308,4.89158449,3323.0,3322.7,35.0]
[1722308831517,1.89158449,3323.1,3322.7,35.0]
[1722308831726,0.11460571,3322.9,3322.8,4.8772]
[1722308832025,0.11508195,3322.9,3322.8,4.8772]
[1722308832385,3.0,3323.3,3322.8,37.4696]
[1722308832520,0.11508195,3322.9,3322.8,39.8772]
[1722308832694,0.11508195,3322.9,3322.8,4.8772]
[1722308833001,3.0,3323.3,3322.8,2.4696]
[1722308833202,0.11517885,3322.9,3322.8,2.4696]
[1722308833393,3.0,3323.3,3322.8,2.4696]
[1722308833593,0.11517885,3322.9,3322.8,2.4696]
[1722308833817,3.0,3323.3,3322.8,2.4696]
[1722308834125,5.40725,3323.3,3322.8,2.4696]
[1722308834296,3.0,3323.3,3322.8,2.4696]
[1722308834485,0.11527995,3323.2,3322.8,2.4696]
[1722308834890,3.0,3323.3,3322.8,4.8772]
[1722308835087,0.11527995,3323.1,3322.9,2.40753]
[1722308835934,3.0,3323.3,3322.9,2.40753]
[1722308836139,0.11527995,3323.0,3322.9,2.40753]
[1722308836296,3.0,3323.3,3322.9,2.40753]
[1722308836706,3.0,3323.3,3323.0,2.40745]
[1722308836890,0.11537262,3323.2,3323.1,2.40739]
[1722308837333,0.1463045,3323.7,3323.1,2.40739]
[1722308837641,0.11537262,3323.6,3323.1,2.40739]
[1722308840851,0.11537262,3323.6,3323.2,2.305]
[1722308841063,0.11537262,3323.6,3323.2,4.71231]
[1722308841335,0.11537262,3323.6,3323.5,4.8142]
[1722308841506,0.11537262,3323.6,3323.5,7.1938]
[1722308841923,0.1463045,3323.7,3323.6,4.81404]
[1722308842126,0.1463045,3323.7,3323.6,2.40702]
[1722308842521,0.1463045,3323.7,3323.6,2.46718779]
[1722308842723,0.1463045,3323.7,3323.6,3.11330533]
[1722308843045,0.1463045,3323.7,3323.6,5.56193679]
[1722308843213,0.1463045,3323.7,3323.6,7.89143679]
[1722308843416,0.1463045,3323.7,3323.6,5.13441679]
[1722308843691,0.1463045,3323.7,3323.6,5.07424909]
[1722308844053,0.1463045,3323.7,3323.6,7.54143678]
[1722308844453,0.1463045,3323.7,3323.6,5.07424909]
[1722308845204,0.1463045,3323.7,3323.6,7.54143677]
[1722308845413,0.1463045,3323.7,3323.6,5.13441677]
[1722308845690,0.1463045,3323.7,3323.6,5.07424909]
[1722308845895,0.1463045,3323.7,3323.6,4.34886131]
[1722308847214,0.1463045,3323.7,3323.6,4.40902904]
[1722308847511,0.1463045,3323.7,3323.6,4.34886131]
[1722308851473,0.1463045,3323.7,3322.9,2.3205]
[1722308851979,0.1463045,3323.7,3323.2,2.40731]
[1722308852292,0.11234208,3323.6,3323.2,2.40731]
[1722308853276,0.11234208,3323.6,3323.0,2.40741]
[1722308853448,0.11234208,3323.6,3322.9,2.3205]
[1722308853660,2.40717,3323.4,3322.5,2.4078]
[1722308853871,2.40725,3323.3,3322.6,2.40774]
[1722308854156,2.51954154,3323.3,3322.6,2.40774]
[1722308854353,2.40732,3323.2,3322.4,2.40788]
[1722308854554,0.11205576,3323.1,3322.4,2.40788]
[1722308854756,2.40746,3323.0,3322.3,4.76425]
[1722308854988,0.11181148,3322.9,3322.3,4.76425]
[1722308855164,0.11181148,3322.9,3322.4,2.40789]
[1722308855381,0.25193758,3323.1,3322.4,2.40789]
[1722308855578,0.37450524,3323.0,3322.4,2.40789]
[1722308856107,0.37450524,3323.0,3322.0,2.2685]
[1722308856108,2.40754,3322.9,3322.0,2.2685]
[1722308856321,0.37450524,3323.0,3322.0,2.2685]
[1722308856322,2.40776,3322.6,3322.0,2.2685]
[1722308856591,2.40776,3322.6,3321.1,2.9757]
[1722308856592,2.40802,3322.3,3321.5,2.2685]
[1722308856766,2.51953347,3322.2,3321.5,2.2685]
[1722308857261,2.4084,3321.7,3321.0,2.2685]
[1722308857570,2.40819,3322.0,3321.1,2.40883]
[1722308857571,0.11131864,3321.6,3321.1,2.40883]
[1722308857910,2.40832,3321.9,3321.1,2.40883]
[1722308858198,2.40834,3321.8,3321.1,2.40883]
[1722308858412,0.11108694,3321.7,3321.6,35.0]
[1722308858755,2.40834,3321.8,3321.6,35.0]
[1722308858971,0.11078767,3321.7,3321.6,35.0]
[1722308859296,2.40834,3321.8,3321.6,35.0]
[1722308859466,0.11078767,3321.7,3321.6,35.0]
[1722308859661,0.781651,3321.9,3321.6,35.0]
[1722308859875,0.11078767,3321.7,3321.6,35.0]
[1722308860261,2.40827,3321.9,3321.6,35.0]
[1722308860480,0.11073711,3321.7,3321.6,35.0]
[1722308860680,3.686097,3321.9,3321.6,35.0]
[1722308860883,0.11073711,3321.7,3321.6,35.0]
[1722308861096,1.277827,3321.9,3321.6,35.0]
[1722308861393,2.4084,3321.7,3321.6,35.0]
[1722308861593,3.01412474,3321.7,3321.6,35.0]
[1722308863058,5.42252474,3321.7,3321.6,35.0]
[1722308865146,5.42252474,3321.7,3320.6,4.73297]
[1722308865147,2.40858,3321.5,3320.6,2.3238]
[1722308865308,2.40893,3321.0,3320.6,2.3238]
[1722308865595,2.40893,3321.0,3320.7,35.0]
[1722308865796,2.40884,3321.1,3320.7,35.0]
[1722308866001,2.51902055,3321.0,3320.7,35.0]
[1722308866199,2.40905,3320.8,3320.7,35.0]
[1722308866433,2.51907043,3320.8,3320.7,35.0]
[1722308867497,0.11002043,3320.8,3320.7,35.0]
[1722308867892,2.409,3320.9,3320.7,35.0]
[1722308868097,0.10979692,3320.8,3320.7,35.0]
[1722308868828,2.40891,3321.0,3320.7,35.0]
[1722308869134,0.10960289,3320.8,3320.2,4.75725]
[1722308869332,2.40891,3321.0,3320.2,5.47393]
[1722308869542,0.10960289,3320.7,3320.2,5.47393]
[1722308869850,0.10963243,3320.6,3320.2,5.47393]
[1722308869994,0.10963243,3320.6,3320.5,35.0]
[1722308870194,2.4092,3320.6,3320.5,35.0]
[1722308870395,2.4092,3320.6,3319.6,2.4319]
[1722308870396,2.40944,3320.3,3319.6,2.4319]
[1722308870708,0.10962399,3320.2,3319.6,2.4319]
[1722308871024,0.10962399,3320.2,3320.1,35.0]
[1722308871598,2.40936,3320.4,3320.1,35.0]
[1722308871810,0.10953961,3320.3,3320.0,2.40963]
[1722308872120,2.40898,3320.9,3320.2,2.40943]
[1722308872311,3.0,3320.9,3320.3,2.4094]
[1722308872629,2.40865,3321.4,3320.7,2.40912]
[1722308873063,2.40865,3321.4,3320.4,2.4853]
[1722308873064,7.37,3321.5,3320.8,0.06022399]
[1722308873217,7.37,3321.5,3321.3,35.0]
[1722308873746,2.4087,3321.3,3320.5,2.40923]
[1722308873982,2.40884,3321.1,3320.4,2.4853]
[1722308874114,10.60120301,3321.5,3320.4,4.89464]
[1722308874318,2.40869,3321.3,3320.4,4.89464]
[1722308874561,2.40869,3321.3,3321.2,35.0]
[1722308874562,5.17381528,3321.3,3321.2,35.0]
[1722308874792,2.40901,3320.9,3320.4,2.4853]
[1722308875077,2.4092,3320.6,3320.0,2.4853]
[1722308875226,2.40929,3320.5,3320.0,2.4853]
[1722308875818,2.40919,3320.7,3320.4,35.0]
[1722308876358,2.40919,3320.7,3320.0,4.89492]
[1722308876557,2.40925,3320.6,3320.0,2.4853]
[1722308876899,2.40927,3320.5,3319.6,2.40987]
[1722308877167,2.4095,3320.2,3319.5,4.72569]
[1722308877332,2.4095,3320.2,3319.7,35.0]
[1722308877565,2.40956,3320.1,3319.7,35.0]
[1722308879559,2.40964,3320.0,3319.7,35.0]
[1722308880496,2.40964,3320.0,3319.5,2.3157]
[1722308880497,0.1094257,3319.9,3319.5,2.3157]
[1722308880904,2.40964,3320.0,3319.8,35.0]
[1722308881421,2.40964,3320.0,3319.5,2.3157]
[1722308881798,2.40964,3320.0,3319.9,35.0]
[1722308883389,2.40953,3320.2,3319.9,35.0]
[1722308883583,2.40953,3320.2,3319.5,2.3157]
[1722308884002,2.40953,3320.2,3320.1,35.0]
[1722308886327,9.77929,3320.5,3320.2,2.4255]
[1722308886328,7.37,3320.5,3320.2,2.4255]
[1722308886513,2.40892,3321.0,3320.3,2.40939]
[1722308886514,7.37,3321.0,3320.3,2.40939]
[1722308886810,2.40899,3320.9,3320.2,2.48573121]
[1722308886971,2.40907,3320.8,3320.2,2.4255]
[1722308887175,2.40913,3320.7,3320.2,2.4255]
[1722308887511,2.40908,3320.8,3320.6,35.0]
[1722308888030,2.40899,3320.9,3320.2,2.4255]
[1722308888031,2.40914,3320.7,3320.2,2.4255]
[1722308888380,1.218807,3320.8,3320.6,35.0]
[1722308888579,2.40899,3320.9,3320.6,35.0]
[1722308888844,9.77891,3321.0,3320.0,2.40962]
[1722308889014,9.77891,3321.0,3319.7,2.4255]
[1722308889015,9.77891,3321.0,3320.1,2.4697804]
[1722308889211,2.40903,3320.9,3320.2,2.40947]
[1722308889609,2.40903,3320.9,3320.3,2.40941]
[1722308889806,2.40903,3320.9,3320.8,35.0]
[1722308893766,2.5183418,3320.9,3320.8,35.0]
[1722308893974,5.42009698,3320.9,3320.8,35.0]
[1722308894271,4.9273718,3320.9,3320.8,35.0]
[1722308894859,2.5183418,3320.9,3320.8,35.0]
[1722308895036,0.1093118,3320.9,3320.8,35.0]
[1722308896488,2.5182918,3320.9,3320.8,35.0]
[1722308896974,2.5182918,3320.9,3320.2,2.40948]
[1722308897161,3.01102198,3320.9,3320.2,2.40948]
[1722308897679,3.01102198,3320.9,3320.1,0.06023041]
[1722308897680,0.60203198,3320.9,3320.3,2.40941]
[1722308897868,0.60203198,3320.9,3320.4,2.40934]
[1722308898791,0.60203198,3320.9,3320.5,2.40927]
[1722308899000,0.60203198,3320.9,3320.4,2.2606]
[1722308899001,0.1093118,3320.9,3320.6,2.4092]
[1722308899296,2.40876,3321.2,3320.4,4.66994]
[1722308899599,2.40888,3321.1,3320.4,4.66994]
[1722308899794,0.10950586,3321.0,3320.4,4.66994]
[1722308900005,2.51843586,3321.0,3320.4,4.66994]
[1722308900155,2.51843586,3321.0,3320.4,2.2606]
[1722308900572,2.40899,3320.9,3320.4,2.2606]
[1722308900777,2.40888,3321.1,3320.4,2.2606]
[1722308901092,0.10950586,3321.0,3320.4,4.66994]
[1722308901272,0.10950586,3321.0,3320.5,2.40925]
[1722308901895,2.51841586,3321.0,3320.4,2.2606]
[1722308902079,2.40898,3320.9,3320.4,2.2606]
[1722308902488,0.1095143,3320.8,3320.4,2.2606]
[1722308902686,0.36136373,3320.8,3320.4,2.2606]
[1722308903079,2.77042373,3320.8,3320.4,2.2606]
[1722308904190,2.40913,3320.7,3320.0,4.69251]
[1722308904381,2.40914,3320.7,3319.8,2.40977]
[1722308904580,2.40939,3320.4,3319.8,2.40977]
[1722308905152,0.10942993,3320.3,3319.8,2.40977]
[1722308905623,2.40927,3320.5,3319.9,2.4097]
[1722308905788,2.40936,3320.4,3319.7,4.69271]
[1722308906318,0.10942993,3320.3,3319.7,4.69271]
[1722308906680,0.60223592,3320.3,3319.5,2.40997]
[1722308906882,0.60223592,3320.3,3319.4,4.75425]
[1722308906883,2.40954,3320.2,3319.4,4.75425]
[1722308907282,2.40962,3320.1,3320.0,35.0]
[1722308907522,2.51896133,3320.1,3320.0,35.0]
[1722308910597,4.09810538,3320.1,3320.0,35.0]
[1722308911025,4.74886492,3320.1,3320.0,35.0]
[1722308911435,4.74921307,3320.1,3320.0,35.0]
[1722308911995,4.09839353,3320.1,3320.0,35.0]
[1722308912210,4.09833877,3320.1,3320.0,35.0]
[1722308912720,2.51890133,3320.1,3320.0,35.0]
[1722308913125,4.09832692,3320.1,3320.0,35.0]
[1722308913689,6.50788692,3320.1,3320.0,35.0]
[1722308913888,5.57925002,3320.1,3320.0,35.0]
[1722308915431,3.16969002,3320.1,3320.0,35.0]
[1722308915600,2.51890133,3320.1,3320.0,35.0]
[1722308918753,4.09748596,3320.1,3320.0,35.0]
[1722308918900,2.51890133,3320.1,3320.0,35.0]
[1722308920631,4.09779407,3320.1,3320.0,35.0]
[1722308921330,1.68823407,3320.1,3320.0,35.0]
[1722308921537,0.10934133,3320.1,3320.0,35.0]
[1722308921905,3.98823274,3320.4,3320.0,35.0]
[1722308922124,0.10838049,3320.1,3319.7,4.749]
[1722308922306,3.98823274,3320.4,3319.7,4.749]
[1722308922816,0.10845224,3320.3,3319.7,4.749]
[1722308923021,0.10845224,3320.3,3320.2,35.0]
[1722308924647,1.68734498,3320.3,3320.2,35.0]
[1722308924799,0.10845224,3320.3,3320.2,35.0]
[1722308927226,1.22145224,3320.3,3320.2,35.0]
[1722308927406,2.8001913,3320.3,3320.2,35.0]
[1722308927737,1.22145224,3320.3,3320.2,35.0]
[1722308927932,0.10845224,3320.3,3320.2,35.0]
[1722308928303,1.113,3320.5,3320.2,35.0]
[1722308928504,0.10859995,3320.3,3320.2,35.0]
[1722308928846,7.37,3320.7,3320.3,2.2747]
[1722308929005,7.37,3320.7,3320.5,2.40927]
[1722308929197,2.69159565,3320.9,3320.3,4.68407]
[1722308929841,2.69159565,3320.9,3320.4,2.40929]
[1722308930172,1.57848282,3321.1,3320.9,2.272]
[1722308930352,1.57848282,3321.4,3320.9,2.272]
[1722308930656,1.57848282,3321.3,3321.0,35.0]
[1722308930819,1.57812913,3321.3,3321.0,35.0]
[1722308931015,2.40855,3321.5,3321.0,35.0]
[1722308931016,1.57812913,3321.4,3321.0,35.0]
[1722308933366,2.40855,3321.5,3321.0,35.0]
[1722308933367,3.98667913,3321.5,3321.0,35.0]
[1722308933659,1.57812913,3321.4,3321.0,35.0]
[1722308934021,1.57812913,3321.5,3321.0,35.0]
[1722308934864,1.57711232,3321.5,3321.0,35.0]
[1722308935729,2.40862,3321.4,3321.0,35.0]
[1722308936256,3.98573232,3321.4,3321.0,35.0]
[1722308937746,2.40862,3321.4,3321.0,35.0]
[1722308938667,0.10781745,3321.3,3321.0,35.0]
[1722308938869,2.40862,3321.4,3321.0,35.0]
[1722308939071,0.10781745,3321.3,3321.0,35.0]
[1722308939270,2.40862,3321.4,3321.0,35.0]
[1722308939449,0.10781745,3321.3,3321.0,35.0]
[1722308939651,2.40862,3321.4,3321.0,35.0]
[1722308939854,2.51653745,3321.3,3321.0,35.0]
[1722308940888,0.10781745,3321.3,3321.0,35.0]
[1722308942378,2.51651745,3321.3,3321.0,35.0]
[1722308943267,2.40884,3321.1,3321.0,35.0]
[1722308943514,2.51701182,3321.1,3321.0,35.0]
[1722308944095,3.009583,3321.1,3321.0,35.0]
[1722308944312,4.92585182,3321.1,3321.0,35.0]
[1722308944456,2.40929,3320.5,3320.0,2.2546]
[1722308944659,0.10812963,3320.4,3320.0,2.2546]
[1722308944954,0.10812963,3320.4,3320.3,35.0]
[1722308947006,2.76921159,3320.4,3320.3,35.0]
[1722308949399,0.10812963,3320.4,3320.3,35.0]
[1722308949780,7.37,3320.9,3320.5,2.40921]
[1722308950196,7.37,3320.9,3320.8,2.3669]
[1722308950393,3.98462356,3321.4,3320.8,37.3669]
[1722308950691,2.4087,3321.3,3320.8,37.3669]
[1722308951008,2.4087,3321.3,3320.8,2.3669]
[1722308951301,2.4087,3321.3,3321.1,35.0]
[1722308951508,3.0,3321.3,3321.1,35.0]
[1722308951964,5.40862,3321.4,3321.1,35.0]
[1722308952398,3.0,3321.4,3321.1,35.0]
[1722308952603,3.0,3321.5,3321.1,35.0]
[1722308953121,5.40849,3321.6,3321.1,35.0]
[1722308953629,6.98401103,3321.7,3321.1,37.40883]
[1722308953831,6.98401103,3321.7,3321.1,35.0]
[1722308953832,0.10816339,3321.5,3321.1,35.0]
[1722308954121,0.10816339,3321.4,3321.1,35.0]
[1722308954592,3.0,3321.5,3321.1,35.0]
[1722308954787,2.40847,3321.6,3321.1,35.0]
[1722308955232,0.10816339,3321.5,3321.1,35.0]
[1722308955441,3.10816339,3321.5,3321.1,35.0]
[1722308956593,0.10816339,3321.5,3321.1,35.0]
[1722308956790,3.0,3321.6,3321.1,35.0]
[1722308957327,0.10819289,3321.5,3321.1,35.0]
[1722308958128,0.10819289,3321.5,3321.1,37.40883]
[1722308958334,0.10819289,3321.5,3321.3,2.40869]
[1722308958542,0.10819289,3321.5,3321.4,4.83102]
[1722308958830,8.94534583,3321.9,3321.7,2.40833]
[1722308958831,7.37,3321.9,3321.7,2.40833]
[1722308958994,7.37,3321.9,3321.8,35.0]
[1722308959197,1.57534583,3322.4,3321.8,35.0]
[1722308959397,2.40802,3322.3,3321.5,2.40849]
[1722308959818,9.77784,3322.5,3321.5,2.40849]
[1722308959819,2.40804,3322.2,3321.5,2.40849]
[1722308960130,2.40804,3322.2,3321.9,35.0]
[1722308961294,2.40004,3322.2,3321.9,35.0]
[1722308961489,1.57473991,3322.4,3321.9,35.0]
[1722308961490,1.57473991,3322.3,3321.9,35.0]
[1722308961695,2.40798,3322.3,3321.9,36.56581576]
[1722308962043,2.40798,3322.3,3321.9,35.0]
[1722308963832,9.77787,3322.5,3321.9,35.0]
[1722308964526,2.40792,3322.4,3321.9,35.0]
[1722308964711,2.40797,3322.3,3321.9,35.0]
[1722308965225,2.40818,3322.0,3321.9,35.0]
[1722308965427,2.648998,3322.0,3321.9,35.0]
[1722308965629,2.40818,3322.0,3321.9,35.0]
[1722308966199,2.40811,3322.1,3321.9,35.0]
[1722308966399,2.40818,3322.0,3321.9,35.0]
[1722308968856,2.51337866,3322.0,3321.9,35.0]
[1722308969642,4.0888427,3322.0,3321.9,35.0]
[1722308970051,2.51337866,3322.0,3321.9,35.0]
[1722308970229,5.87125493,3322.0,3321.9,35.0]
[1722308970560,6.42125493,3322.0,3321.9,35.0]
[1722308971136,7.9969728,3322.0,3321.9,35.0]
[1722308971351,4.63909653,3322.0,3321.9,35.0]
[1722308971582,2.51337866,3322.0,3321.9,35.0]
[1722308971732,4.08909653,3322.0,3321.9,35.0]
[1722308971941,0.10519866,3322.0,3321.9,35.0]
[1722308973237,3.0,3322.1,3321.9,38.04901288]
[1722308973441,0.10523663,3322.0,3321.9,35.0]
[1722308974152,4.57603623,3322.3,3321.9,35.0]
[1722308974352,0.10523663,3322.0,3321.9,35.0]
[1722308974547,4.57603623,3322.3,3321.9,35.0]
[1722308974756,0.10526192,3322.0,3321.9,35.0]
[1722308974929,4.57603623,3322.3,3321.9,35.0]
[1722308975130,0.10527878,3322.0,3321.9,35.0]
[1722308975341,1.57603623,3322.3,3321.9,36.301463]
[1722308975542,0.10527878,3322.0,3321.9,36.301463]
[1722308975769,8.94603623,3322.5,3322.0,2.40815]
[1722308975970,1.57612409,3322.4,3322.0,2.40815]
[1722308976129,1.57612409,3322.4,3322.0,2.40816]
[1722308976130,0.10527878,3322.4,3322.0,2.40816]
[1722308976542,0.10527878,3322.4,3321.9,35.0]
[1722308976543,0.10527878,3322.4,3322.1,2.4081]
[1722308976760,0.10527878,3322.4,3322.1,5.45711288]
[1722308977631,0.10527878,3322.4,3322.1,3.04901288]
[1722308977865,0.10527878,3322.4,3321.9,35.0]
[1722308978071,2.51316878,3322.4,3321.8,2.40832]
[1722308978568,2.51316878,3322.4,3322.3,35.0]
[1722308978569,4.08929287,3322.4,3322.3,35.0]
[1722308978778,3.89988107,3322.4,3322.3,35.0]
[1722308978961,5.4754801,3322.4,3322.3,35.0]
[1722308979130,5.475445,3322.4,3322.3,35.0]
[1722308979773,3.89988107,3322.4,3322.3,35.0]
[1722308979955,5.475445,3322.4,3322.3,35.0]
[1722308980133,4.08873271,3322.4,3322.3,35.0]
[1722308980842,4.92105878,3322.4,3322.3,35.0]
[1722308983505,6.49636668,3322.4,3322.3,35.0]
[1722308983673,4.92105878,3322.4,3322.3,35.0]
[1722308983882,2.51316878,3322.4,3322.3,35.0]
[1722308984790,4.92105878,3322.4,3322.3,35.0]
[1722308984995,4.08837962,3322.4,3322.3,35.0]
[1722308985296,0.10527878,3322.4,3322.3,35.0]
[1722308985498,2.51316878,3322.4,3322.3,35.0]
[1722308986358,0.10527878,3322.4,3322.3,35.0]
[1722308986550,0.10527878,3322.4,3322.3,38.04901288]
[1722308986790,3.0,3322.7,3322.3,38.04901288]
[1722308986955,0.10563281,3322.4,3322.3,35.0]
[1722308987287,3.0,3322.8,3322.4,2.40789]
[1722308987497,3.0,3322.9,3322.3,35.0]
[1722308987655,3.0,3322.9,3322.3,4.04955729]
[1722308987854,3.0,3322.9,3322.3,2.40796]
[1722308988157,11.35251802,3323.0,3322.7,35.0]
[1722308988857,8.9443738,3323.0,3322.7,35.0]
[1722308989466,7.37,3323.0,3322.7,35.0]
[1722308990279,1.5743738,3323.3,3322.7,35.0]
[1722308990482,2.40731,3323.2,3322.8,3.04901288]
[1722308990689,2.40731,3323.2,3322.7,35.0]
[1722308992695,2.40747,3323.0,3322.7,35.0]
[1722308992895,2.4076,3322.8,3322.7,35.0]
[1722308993870,4.8152,3322.8,3322.7,35.0]
[1722308994276,6.38923692,3322.8,3322.7,35.0]
[1722308994458,4.8152,3322.8,3322.7,35.0]
[1722308994667,2.4076,3322.8,3322.7,35.0]
[1722308994901,3.98315933,3322.8,3322.7,35.0]
[1722308995090,2.4076,3322.8,3322.7,35.0]
[1722308996211,3.9838836,3322.8,3322.7,35.0]
[1722308996508,3.98383161,3322.8,3322.7,35.0]
[1722308996879,1.57623161,3322.8,3322.7,35.0]
[1722308997396,3.98377161,3322.9,3322.7,35.0]
[1722308998302,3.98407027,3322.9,3322.7,35.0]
[1722308998504,1.57653027,3322.9,3322.7,35.0]
[1722308998799,0.10599098,3322.8,3322.7,35.0]
[1722308999586,1.57653027,3323.0,3322.7,35.0]
[1722308999779,0.10603311,3322.8,3322.5,2.40782]
[1722308999994,1.57653027,3323.0,3322.5,2.40782]
[1722309000189,0.10607105,3322.7,3322.5,2.40782]
[1722309000501,3.98399027,3323.0,3322.6,35.0]
[1722309000676,1.57653027,3322.8,3322.6,35.0]
[1722309001201,1.57686686,3322.8,3322.6,35.0]
[1722309001388,3.98451686,3322.8,3322.6,35.0]
[1722309001608,2.40765,3322.8,3322.6,35.0]
[1722309001778,1.5770131,3322.8,3322.6,35.0]
[1722309003182,1.5770131,3322.9,3322.6,35.0]
[1722309003483,1.5771226,3322.9,3322.6,35.0]
[1722309003993,3.98482253,3322.9,3322.6,35.0]
[1722309004168,1.57728253,3322.8,3322.6,35.0]
[1722309004589,2.40768,3322.7,3322.6,35.0]
[1722309004814,7.58817829,3322.7,3322.6,35.0]
[1722309005170,5.69543925,3322.7,3322.6,35.0]
[1722309006803,8.45363479,3322.7,3322.6,35.0]
[1722309007177,6.24543925,3322.7,3322.6,35.0]
[1722309007371,4.30101225,3322.7,3322.6,35.0]
[1722309007877,4.81536,3322.7,3322.6,35.0]
[1722309008272,2.40768,3322.7,3322.6,35.0]
[1722309009378,5.4076,3322.9,3322.6,35.0]
[1722309009594,2.4076,3322.9,3322.6,35.0]
[1722309010016,2.40739,3323.1,3322.6,35.0]
[1722309010318,2.40739,3323.1,3322.6,3.04901288]
[1722309010606,2.40754,3322.9,3322.7,35.0]
[1722309011476,2.4076,3322.8,3322.7,35.0]
[1722309013732,2.5134098,3322.8,3322.7,35.0]
[1722309016933,0.1058098,3322.8,3322.7,35.0]
[1722309017431,2.40739,3323.1,3322.7,35.0]
[1722309017629,0.1058056,3322.8,3322.7,35.0]
[1722309017819,2.40739,3323.1,3322.7,35.0]
[1722309018017,0.1058056,3322.8,3322.7,35.0]
[1722309018231,2.40759,3322.9,3322.7,35.0]
[1722309018397,0.10582666,3322.8,3322.7,35.0]
[1722309019232,2.40743,3323.1,3322.7,35.0]
[1722309019527,0.10582666,3322.8,3322.7,35.0]
[1722309019696,2.40743,3323.1,3322.7,35.0]
[1722309019897,0.10583086,3322.8,3322.7,35.0]
[1722309020331,2.40743,3323.1,3322.7,35.0]
[1722309020539,0.10583086,3322.8,3322.7,35.0]
[1722309020698,2.40747,3323.0,3322.7,35.0]
[1722309020908,0.10583086,3322.8,3322.7,35.0]
[1722309021208,4.40820896,3322.8,3322.7,35.0]
[1722309021409,2.51341823,3322.8,3322.7,35.0]
[1722309021793,4.40829575,3322.8,3322.7,35.0]
[1722309021993,2.51341823,3322.8,3322.7,35.0]
[1722309022527,2.00069575,3322.8,3322.7,35.0]
[1722309022733,0.10581823,3322.8,3322.7,35.0]
[1722309023438,1.89478134,3322.9,3322.7,35.0]
[1722309023602,0.10593199,3322.8,3322.7,35.0]
[1722309026402,1.8947777,3323.0,3322.7,38.04901288]
[1722309026623,2.40732,3323.2,3322.7,38.04901288]
[1722309026624,0.10591092,3322.8,3322.7,38.04901288]
[1722309026949,1.8947777,3323.0,3322.7,42.79849288]
[1722309027302,0.10591092,3322.9,3322.7,42.79849288]
[1722309027503,0.10591092,3322.9,3322.8,3.04901288]
[1722309028741,2.00132346,3322.9,3322.7,40.39081288]
[1722309029037,2.00132346,3322.9,3322.7,37.3418]
[1722309029594,0.10591092,3322.9,3322.7,37.3418]
[1722309030005,1.89541254,3323.0,3322.7,39.74947]
[1722309030333,0.10599942,3322.8,3322.7,39.74947]
[1722309030646,0.10599942,3322.8,3322.7,42.79848288]
[1722309030847,1.89609129,3323.0,3322.7,42.79848288]
[1722309031142,0.10599942,3322.8,3322.7,42.79848288]
[1722309031340,1.89609129,3323.0,3322.7,42.79848288]
[1722309031510,0.10604575,3322.8,3322.7,42.79848288]
[1722309031714,1.89609129,3323.0,3322.7,42.79848288]
[1722309032043,1.89609129,3323.0,3322.8,2.17399616]
[1722309032444,3.00709129,3323.0,3322.7,2.3418]
[1722309032748,1.89609129,3322.9,3322.7,2.3418]
[1722309033420,1.89609129,3322.9,3322.8,35.0]
[1722309034256,1.89634957,3322.9,3322.8,35.0]
[1722309034749,1.111,3323.0,3322.8,35.0]
[1722309034956,1.89635559,3322.9,3322.8,35.0]
[1722309035253,1.111,3323.0,3322.9,2.384]
[1722309035254,1.89635559,3323.0,3322.9,2.384]
[1722309035421,1.89635559,3323.1,3322.9,2.384]
[1722309036175,1.89635559,3323.2,3323.0,2.40746]
[1722309036348,1.89635559,3323.4,3323.3,2.40724]
[1722309036547,7.37,3323.5,3323.4,2.384]
[1722309037049,7.37,3323.5,3323.4,4.79117]
[1722309037419,7.37,3323.5,3323.4,7.19834]
[1722309037623,7.50693373,3323.5,3323.4,7.19834]
[1722309037816,7.50693373,3323.5,3323.4,42.19834]
[1722309038017,7.50693373,3323.5,3323.4,45.24735288]
[1722309039408,7.50693373,3323.5,3323.4,42.84018288]
[1722309039858,7.50693373,3323.5,3323.4,40.43301288]
[1722309040458,7.50693373,3323.5,3323.4,42.84018288]